[Event "XXII Obert Internacional d'Escacs Sant Marti 2022"]
[Site "Barcelona, Spain"]
[Date "2022.07.19"]
[Round "7.8"]
[White "D`costa, Lorin"]
[Black "Arpan, Das (Jr)"]
[Result "1-0"]
[TimeControl "1.30 fb 30"]
[WhiteElo "2372"]
[BlackElo "2178"]

1. d4 {[%clk 01:27:12]} {[%emt 00:03:47]} Nf6 {[%clk 01:30:55]} {[%emt
00:00:05]} 2. Nf3 {[%clk 01:26:55]} {[%emt 00:00:46]} g6 {[%clk 01:31:18]}
{[%emt 00:00:09]} 3. c4 {[%clk 01:26:59]} {[%emt 00:00:24]} Bg7 {[%clk
01:31:45]} {[%emt 00:00:04]} 4. Nc3 {[%clk 01:27:18]} {[%emt 00:00:10]} O-O
{[%clk 01:32:03]} {[%emt 00:00:12]} 5. Bg5 {[%clk 01:27:34]} {[%emt 00:00:14]}
h6 {[%clk 01:31:47]} {[%emt 00:00:47]} 6. Bh4 {[%clk 01:27:47]} {[%emt
00:00:17]} d6 {[%clk 01:31:23]} {[%emt 00:00:54]} 7. e3 {[%clk 01:27:51]}
{[%emt 00:00:25]} Nbd7 {[%clk 01:29:25]} {[%emt 00:02:29]} 8. Be2 {[%clk
01:27:16]} {[%emt 00:01:04]} b6 {[%clk 01:29:17]} {[%emt 00:00:39]} 9. Qc2
{[%clk 01:26:00]} {[%emt 00:01:45]} Bb7 {[%clk 01:29:33]} {[%emt 00:00:15]} 10.
Rd1 {[%clk 01:23:40]} {[%emt 00:02:50]} Qe8 {[%clk 01:24:51]} {[%emt 00:05:12]}
11. d5 {[%clk 01:16:16]} {[%emt 00:07:53]} a6 {[%clk 01:02:00]} {[%emt
00:23:22]} 12. O-O {[%clk 01:00:22]} {[%emt 00:16:23]} e5 {[%clk 00:37:55]}
{[%emt 00:24:36]} 13. Nd2 {[%clk 00:52:18]} {[%emt 00:08:33]} Bc8 {[%clk
00:34:42]} {[%emt 00:03:44]} 14. e4 {[%clk 00:45:03]} {[%emt 00:07:45]} Nh7
{[%clk 00:32:11]} {[%emt 00:02:59]} 15. f3 {[%clk 00:33:24]} {[%emt 00:12:10]}
f5 {[%clk 00:30:19]} {[%emt 00:02:23]} 16. b4 {[%clk 00:30:53]} {[%emt
00:03:01]} f4 {[%clk 00:28:24]} {[%emt 00:02:25]} 17. Bf2 {[%clk 00:29:36]}
{[%emt 00:01:46]} g5 {[%clk 00:23:20]} {[%emt 00:05:35]} 18. c5 {[%clk
00:27:25]} {[%emt 00:02:41]} g4 {[%clk 00:14:58]} {[%emt 00:08:52]} 19. cxd6
{[%clk 00:23:12]} {[%emt 00:04:43]} g3 {[%clk 00:13:48]} {[%emt 00:01:40]} 20.
hxg3 {[%clk 00:22:34]} {[%emt 00:01:09]} fxg3 {[%clk 00:14:16]} {[%emt
00:00:02]} 21. Bxg3 {[%clk 00:22:16]} {[%emt 00:00:47]} Qg6 {[%clk 00:14:07]}
{[%emt 00:00:38]} 22. Bh2 {[%clk 00:20:30]} {[%emt 00:02:16]} cxd6 {[%clk
00:11:35]} {[%emt 00:03:02]} 23. Nc4 {[%clk 00:18:29]} {[%emt 00:02:31]} Ng5
{[%clk 00:10:31]} {[%emt 00:01:35]} 24. Kh1 {[%clk 00:15:27]} {[%emt 00:03:31]}
Rf4 {[%clk 00:04:30]} {[%emt 00:06:32]} 25. Ne3 {[%clk 00:11:37]} {[%emt
00:04:19]} Rf7 {[%clk 00:01:27]} {[%emt 00:03:34]} 26. Nf5 {[%clk 00:05:54]}
{[%emt 00:06:13]} Bf8 {[%clk 00:01:11]} {[%emt 00:00:45]} 27. Rc1 {[%clk
00:04:44]} {[%emt 00:01:40]} Rb8 {[%clk 00:00:49]} {[%emt 00:00:53]} 28. Nd1
{[%clk 00:04:15]} {[%emt 00:00:58]} Nf6 {[%clk 00:01:10]} {[%emt 00:00:09]} 29.
Nde3 {[%clk 00:04:32]} {[%emt 00:00:13]} Nh5 {[%clk 00:01:09]} {[%emt
00:00:31]} 30. g3 {[%clk 00:03:56]} {[%emt 00:01:07]} Nh3 {[%clk 00:00:56]}
{[%emt 00:00:43]} 31. f4 {[%clk 00:01:29]} {[%emt 00:02:57]} Bxf5 {[%clk
00:00:41]} {[%emt 00:00:46]} 32. Nxf5 {[%clk 00:01:53]} {[%emt 00:00:04]} Rxf5
{[%clk 00:00:39]} {[%emt 00:00:33]} 33. exf5 {[%clk 00:01:53]} {[%emt
00:00:30]} Nxg3+ {[%clk 00:01:04]} {[%emt 00:00:05]} 34. Kg2 {[%clk 00:00:49]}
{[%emt 00:01:33]} Nxf5+ {[%clk 00:00:33]} {[%emt 00:01:01]} 35. Kxh3 {[%clk
00:01:05]} {[%emt 00:00:15]} Qf6 {[%clk 00:00:44]} {[%emt 00:00:19]} 36. Qc3
{[%clk 00:00:42]} {[%emt 00:00:53]} Qh4+ {[%clk 00:00:44]} {[%emt 00:00:30]} 37.
Kg2 {[%clk 00:01:11]} Rb7 {[%clk 00:01:02]} {[%emt 00:00:12]} 38. Kh1 {[%clk
00:00:59]} {[%emt 00:00:41]} Rf7 {[%clk 00:00:32]} {[%emt 00:01:00]} 39. Rg1+
{[%clk 00:01:13]} {[%emt 00:00:17]} Kh8 {[%clk 00:00:36]} {[%emt 00:00:26]} 40.
Bg4 {[%clk 00:00:48]} {[%emt 00:00:54]} Nd4 {[%emt 00:00:36]} 41. fxe5 {[%clk
00:00:47]} {[%emt 00:00:30]} dxe5 {[%clk 00:00:33]} {[%emt 00:00:29]} 42. Qg3
{[%clk 00:01:03]} {[%emt 00:00:14]} Qd8 {[%clk 00:00:32]} {[%emt 00:00:31]} 43.
Be6 {[%clk 00:00:45]} {[%emt 00:00:48]} Rg7 {[%clk 00:00:34]} {[%emt 00:00:29]}
44. Qxe5 {[%clk 00:00:41]} {[%emt 00:00:33]} Nf3 {[%clk 00:00:58]} {[%emt
00:00:05]} 45. Qxg7+ {[%clk 00:00:34]} {[%emt 00:00:37]} Bxg7 {[%clk 00:00:58]}
{[%emt 00:00:30]} 46. Rc8 {[%clk 00:00:59]} {[%emt 00:00:05]} Qxc8 {[%clk
00:00:59]} {[%emt 00:00:29]} 47. Bxc8 {[%clk 00:01:28]} {[%emt 00:00:01]} Nxg1
{[%clk 00:01:19]} {[%emt 00:00:10]} 48. Bxg1 {[%clk 00:01:44]} {[%emt
00:00:14]} Bf8 {[%clk 00:00:58]} {[%emt 00:00:51]} 49. Bxb6 {[%clk 00:01:16]}
{[%emt 00:00:58]} Bxb4 {[%clk 00:01:26]} {[%emt 00:00:02]} 50. Bc7 {[%clk
00:01:23]} {[%emt 00:00:23]} Kg7 {[%clk 00:01:29]} {[%emt 00:00:26]} 51. d6
{[%clk 00:01:33]} {[%emt 00:00:20]} Kf6 {[%clk 00:01:44]} {[%emt 00:00:15]} 52.
Bd8+ {[%clk 00:00:57]} {[%emt 00:01:07]} Ke5 {[%clk 00:01:58]} {[%emt
00:00:16]} 53. d7 {[%clk 00:01:19]} {[%emt 00:00:07]} Kd5 {[%clk 00:02:23]}
{[%emt 00:00:06]} 54. Bc7 {[%clk 00:00:55]} {[%emt 00:00:54]} Be7 {[%clk
00:02:39]} {[%emt 00:00:12]} 55. d8=Q+ {[%clk 00:01:16]} {[%emt 00:00:10]} Bxd8
{[%clk 00:03:08]} {[%emt 00:00:01]} 56. Bxd8 {[%clk 00:01:40]} {[%emt
00:00:07]} Kc5 {[%clk 00:03:28]} {[%emt 00:00:10]} 57. Bxa6 {[%clk 00:01:59]}
{[%emt 00:00:10]} Kb4 {[%clk 00:03:53]} {[%emt 00:00:05]} 58. Be7+ {[%clk
00:02:04]} {[%emt 00:00:26]} 1-0

[Event "XXII Obert Internacional d'Escacs Sant Marti 2022"]
[Site "Barcelona, Spain"]
[Date "2022.07.19"]
[Round "7.9"]
[White "Noboa Silva, Kevin"]
[Black "Phadke, Sohan"]
[Result "1/2-1/2"]
[TimeControl "1.30 fb 30"]
[WhiteElo "2304"]
[BlackElo "2177"]

1. d4 {[%clk 01:30:51]} {[%emt 00:00:09]} d5 {[%clk 01:30:37]} {[%emt
00:00:22]} 2. c4 {[%clk 01:31:00]} {[%emt 00:00:22]} e6 {[%clk 01:25:32]}
{[%emt 00:05:34]} 3. Nc3 {[%clk 01:30:55]} {[%emt 00:00:35]} c5 {[%clk
01:24:11]} {[%emt 00:01:51]} 4. cxd5 {[%clk 01:30:28]} {[%emt 00:00:57]} exd5
{[%clk 01:24:31]} {[%emt 00:00:10]} 5. Nf3 {[%clk 01:30:16]} {[%emt 00:00:43]}
Nc6 {[%clk 01:24:44]} {[%emt 00:00:17]} 6. g3 {[%clk 01:30:24]} {[%emt
00:00:22]} Nf6 {[%clk 01:25:02]} {[%emt 00:00:10]} 7. Bg2 {[%clk 01:30:23]}
{[%emt 00:00:32]} cxd4 {[%clk 01:24:57]} {[%emt 00:00:35]} 8. Nxd4 {[%clk
01:30:25]} {[%emt 00:00:28]} Bc5 {[%clk 01:25:16]} {[%emt 00:00:10]} 9. Nxc6
{[%clk 01:29:34]} {[%emt 00:01:22]} bxc6 {[%clk 01:25:36]} {[%emt 00:00:09]} 10.
O-O {[%clk 01:29:48]} {[%emt 00:00:17]} O-O {[%clk 01:24:21]} {[%emt 00:01:45]}
11. Qc2 {[%clk 01:29:34]} {[%emt 00:00:44]} Bb6 {[%clk 01:18:08]} {[%emt
00:06:44]} 12. Na4 {[%clk 01:26:05]} {[%emt 00:03:59]} Ba6 {[%clk 01:06:44]}
{[%emt 00:11:53]} 13. Nxb6 {[%clk 01:13:47]} {[%emt 00:12:48]} axb6 {[%clk
00:56:53]} {[%emt 00:10:22]} 14. Re1 {[%clk 01:04:56]} {[%emt 00:09:20]} Qe8
{[%clk 00:37:08]} {[%emt 00:20:15]} 15. Qb3 {[%clk 00:44:12]} {[%emt 00:21:15]}
Bb5 {[%clk 00:19:38]} {[%emt 00:18:00]} 16. Bf4 {[%clk 00:39:29]} {[%emt
00:05:13]} Ne4 {[%clk 00:17:25]} {[%emt 00:02:43]} 17. Qd1 {[%clk 00:23:36]}
{[%emt 00:16:22]} Qe6 {[%clk 00:15:07]} {[%emt 00:02:50]} 18. a4 {[%clk
00:21:46]} {[%emt 00:02:20]} Ba6 {[%clk 00:15:09]} {[%emt 00:00:27]} 19. Qc2
{[%clk 00:18:01]} {[%emt 00:04:15]} Rfc8 {[%clk 00:08:22]} {[%emt 00:07:17]} 20.
a5 {[%clk 00:16:21]} {[%emt 00:02:10]} bxa5 {[%clk 00:08:34]} {[%emt 00:00:18]}
21. Rxa5 {[%clk 00:16:09]} {[%emt 00:00:43]} Bb5 {[%clk 00:08:54]} {[%emt
00:00:10]} 22. Rxa8 {[%clk 00:15:20]} {[%emt 00:01:19]} Rxa8 {[%clk 00:09:21]}
{[%emt 00:00:03]} 23. Rc1 {[%clk 00:13:19]} {[%emt 00:02:31]} h6 {[%clk
00:09:35]} {[%emt 00:00:16]} 24. Bf1 {[%clk 00:11:55]} {[%emt 00:01:54]} Qf6
{[%clk 00:07:16]} {[%emt 00:02:50]} 25. f3 {[%clk 00:09:36]} {[%emt 00:02:48]}
Ng5 {[%clk 00:07:01]} {[%emt 00:00:45]} 26. Qc3 {[%clk 00:07:46]} {[%emt
00:02:21]} d4 {[%clk 00:06:27]} {[%emt 00:01:05]} 27. Qb4 {[%clk 00:04:45]}
{[%emt 00:03:30]} d3 {[%clk 00:04:21]} {[%emt 00:02:37]} 28. exd3 {[%clk
00:03:02]} {[%emt 00:02:12]} Nxf3+ {[%clk 00:04:07]} {[%emt 00:00:44]} 29. Kg2
{[%clk 00:03:16]} {[%emt 00:00:16]} Nh4+ {[%clk 00:01:22]} {[%emt 00:03:15]} 30.
Kh1 {[%clk 00:01:28]} {[%emt 00:02:18]} Ng6 {[%clk 00:01:46]} {[%emt 00:00:06]}
31. Qc3 {[%clk 00:00:52]} {[%emt 00:01:05]} Qf5 {[%clk 00:01:26]} {[%emt
00:00:51]} 32. Qc5 {[%clk 00:00:45]} {[%emt 00:00:37]} Qf6 {[%clk 00:01:00]}
{[%emt 00:00:56]} 33. Qc3 {[%clk 00:00:53]} {[%emt 00:00:22]} Qf5 {[%clk
00:01:19]} {[%emt 00:00:12]} 34. Qc5 {[%clk 00:01:20]} {[%emt 00:00:03]} Qxc5
{[%clk 00:00:48]} {[%emt 00:01:02]} 35. Rxc5 {[%clk 00:01:48]} {[%emt
00:00:01]} Nxf4 {[%clk 00:01:16]} {[%emt 00:00:01]} 36. gxf4 {[%clk 00:00:57]}
{[%emt 00:00:24]} Ra2 37. b3 {[%clk 00:00:54]} {[%emt 00:01:44]} Rb2 {[%clk
00:02:16]} 38. Rc3 {[%clk 00:01:00]} {[%emt 00:00:58]} Rf2 39. Bg2 {[%emt
00:00:27]} Rxf4 {[%clk 00:02:29]} {[%emt 00:00:04]} 40. Bxc6 {[%clk 00:01:19]}
{[%emt 00:00:10]} Bxc6+ {[%clk 00:02:54]} {[%emt 00:00:05]} 41. Rxc6 {[%clk
00:01:48]} {[%emt 00:00:01]} Rf2 {[%clk 00:03:22]} {[%emt 00:00:02]} 42. Rc8+
{[%clk 00:00:41]} {[%emt 00:01:37]} Kh7 {[%clk 00:03:47]} {[%emt 00:00:05]} 43.
b4 {[%clk 00:00:52]} {[%emt 00:00:20]} Rb2 {[%clk 00:04:14]} {[%emt 00:00:03]}
44. Rb8 {[%clk 00:01:18]} {[%emt 00:00:04]} g5 {[%clk 00:04:34]} {[%emt
00:00:10]} 45. b5 {[%clk 00:00:44]} {[%emt 00:01:04]} f5 {[%clk 00:04:32]}
{[%emt 00:00:31]} 46. b6 {[%clk 00:00:57]} {[%emt 00:00:18]} f4 {[%clk
00:04:56]} {[%emt 00:00:06]} 47. d4 {[%clk 00:01:00]} {[%emt 00:00:27]} f3
{[%clk 00:05:20]} {[%emt 00:00:05]} 48. Kg1 {[%clk 00:01:21]} {[%emt 00:00:09]}
g4 {[%clk 00:05:47]} {[%emt 00:00:04]} 49. d5 {[%clk 00:01:32]} {[%emt
00:00:19]} Rg2+ {[%clk 00:05:37]} {[%emt 00:00:40]} 50. Kf1 {[%clk 00:00:34]}
{[%emt 00:01:28]} Rxh2 {[%clk 00:06:01]} {[%emt 00:00:05]} 51. Rf8 {[%clk
00:00:44]} {[%emt 00:00:20]} Rb2 {[%clk 00:04:18]} {[%emt 00:02:13]} 52. d6
{[%clk 00:01:09]} {[%emt 00:00:06]} g3 {[%clk 00:04:29]} {[%emt 00:00:19]} 53.
Rxf3 {[%clk 00:00:55]} {[%emt 00:00:45]} Rxb6 {[%clk 00:04:56]} {[%emt
00:00:03]} 54. Rd3 {[%clk 00:00:44]} {[%emt 00:00:41]} Rb8 {[%clk 00:05:23]}
{[%emt 00:00:03]} 55. Kg2 {[%clk 00:01:01]} {[%emt 00:00:13]} Kg6 {[%clk
00:05:40]} {[%emt 00:00:13]} 56. Kxg3 {[%clk 00:00:55]} {[%emt 00:00:36]} Kf6
{[%clk 00:06:03]} {[%emt 00:00:06]} 57. Kg4 {[%clk 00:01:06]} {[%emt 00:00:19]}
Ke6 {[%clk 00:06:26]} {[%emt 00:00:05]} 58. Kh5 {[%clk 00:01:25]} {[%emt
00:00:14]} Rd8 {[%clk 00:06:52]} {[%emt 00:00:04]} 59. Kxh6 {[%clk 00:01:45]}
{[%emt 00:00:10]} Rxd6 {[%clk 00:07:20]} {[%emt 00:00:01]} 60. Rxd6+ {[%clk
00:02:13]} {[%emt 00:00:02]} Kxd6 {[%clk 00:07:44]} {[%emt 00:00:06]} 1/2-1/2

[Event "XXII Obert Internacional d'Escacs Sant Marti 2022"]
[Site "Barcelona, Spain"]
[Date "2022.07.19"]
[Round "7.10"]
[White "Lindh, Fredrik"]
[Black "Pimpalkhare, Vedant"]
[Result "1-0"]
[TimeControl "1.30 fb 30"]
[WhiteElo "2287"]
[BlackElo "2057"]

1. e4 {[%clk 01:30:17]} {[%emt 00:00:43]} e6 {[%clk 01:30:54]} {[%emt
00:00:06]} 2. d4 {[%clk 01:30:42]} {[%emt 00:00:04]} d5 {[%clk 01:31:19]}
{[%emt 00:00:05]} 3. Nc3 {[%clk 01:31:08]} {[%emt 00:00:05]} Nf6 {[%clk
01:31:43]} {[%emt 00:00:06]} 4. e5 {[%clk 01:31:32]} {[%emt 00:00:06]} Nfd7
{[%clk 01:32:08]} {[%emt 00:00:05]} 5. f4 {[%clk 01:31:57]} {[%emt 00:00:05]}
c5 {[%clk 01:32:33]} {[%emt 00:00:05]} 6. Nf3 {[%clk 01:32:23]} {[%emt
00:00:04]} Nc6 {[%clk 01:32:57]} {[%emt 00:00:06]} 7. Be3 {[%clk 01:32:47]}
{[%emt 00:00:06]} Be7 {[%clk 01:33:09]} {[%emt 00:00:18]} 8. Qd2 {[%clk
01:30:34]} {[%emt 00:02:44]} O-O {[%clk 01:33:12]} {[%emt 00:00:26]} 9. dxc5
{[%clk 01:31:00]} {[%emt 00:00:04]} Qa5 {[%clk 01:33:01]} {[%emt 00:00:42]} 10.
O-O-O {[%clk 01:30:41]} {[%emt 00:00:48]} b6 {[%clk 01:25:48]} {[%emt
00:07:43]} 11. Bb5 {[%clk 01:18:13]} {[%emt 00:12:58]} Nb4 {[%clk 01:11:03]}
{[%emt 00:15:15]} 12. a3 {[%emt 00:21:27]} bxc5 {[%clk 01:11:23]} {[%emt
00:00:09]} 13. Bxd7 {[%clk 00:56:28]} {[%emt 00:01:19]} Bxd7 {[%clk 01:11:47]}
{[%emt 00:00:06]} 14. axb4 {[%clk 00:56:21]} {[%emt 00:00:38]} cxb4 {[%clk
01:12:12]} {[%emt 00:00:04]} 15. Nb1 {[%clk 00:56:47]} {[%emt 00:00:04]} Qa2
{[%clk 01:06:32]} {[%emt 00:06:10]} 16. f5 {[%clk 00:45:40]} {[%emt 00:11:37]}
Rfc8 {[%clk 01:04:49]} {[%emt 00:02:13]} 17. f6 {[%clk 00:43:28]} {[%emt
00:02:43]} gxf6 {[%clk 00:44:37]} {[%emt 00:20:41]} 18. Qf2 {[%clk 00:35:24]}
{[%emt 00:08:33]} Ba4 {[%clk 00:21:28]} {[%emt 00:23:40]} 19. Rd2 {[%clk
00:32:32]} {[%emt 00:03:23]} Bxc2 {[%clk 00:15:10]} {[%emt 00:06:48]} 20. Rxc2
{[%clk 00:30:50]} {[%emt 00:02:12]} b3 {[%clk 00:15:35]} {[%emt 00:00:04]} 21.
Rc3 {[%clk 00:26:47]} {[%emt 00:04:33]} Bb4 {[%clk 00:11:36]} {[%emt 00:04:28]}
22. exf6 {[%clk 00:20:43]} {[%emt 00:06:34]} Kf8 {[%clk 00:07:36]} {[%emt
00:04:31]} 23. Bc5+ {[%clk 00:17:49]} {[%emt 00:03:24]} Bxc5 {[%clk 00:08:00]}
{[%emt 00:00:06]} 24. Rxc5 {[%clk 00:18:14]} {[%emt 00:00:05]} Qa5 {[%clk
00:08:27]} {[%emt 00:00:03]} 25. Rc3 {[%clk 00:18:39]} {[%emt 00:00:05]} Rxc3+
{[%clk 00:08:45]} {[%emt 00:00:12]} 26. bxc3 {[%clk 00:18:59]} {[%emt
00:00:10]} Rb8 {[%clk 00:08:58]} {[%emt 00:00:17]} 27. Qg3 {[%clk 00:17:50]}
{[%emt 00:01:38]} b2+ {[%clk 00:08:21]} {[%emt 00:01:08]} 28. Kd2 {[%clk
00:18:17]} {[%emt 00:00:03]} 1-0